[Event "*** Titled Tuesday 3|2 Blitz (Late)"]
[Site "Chess.com"]
[Date "2016.12.06"]
[Round "9"]
[White "jposthuma"]
[Black "Buffy7"]
[Result "0-1"]
[WhiteElo "2230"]
[BlackElo "2474"]
[TimeControl "180+2"]
[EndTime "18:48:37 PST"]
[Termination "Buffy7 won by resignation"]

1. d4 {[%clk 0:03:02]} 1... Nf6 {[%clk 0:03:00.2]} 2. c4 {[%clk 0:03:03.1]} 2...
g6 {[%clk 0:03:00.9]} 3. Nc3 {[%clk 0:03:04.4]} 3... d5 {[%clk 0:03:02.5]} 4.
cxd5 {[%clk 0:03:06.3]} 4... Nxd5 {[%clk 0:03:04.1]} 5. Na4 {[%clk 0:03:07.2]}
5... e5 {[%clk 0:02:56.5]} 6. e4 {[%clk 0:02:33.2]} 6... Nf6 {[%clk 0:02:40.1]}
7. dxe5 {[%clk 0:02:12.8]} 7... Qxd1+ {[%clk 0:02:39.6]} 8. Kxd1 {[%clk
0:02:14.7]} 8... Nxe4 {[%clk 0:02:38]} 9. Be3 {[%clk 0:02:15.6]} 9... Bd7 {[%clk
0:02:35.6]} 10. Nc3 {[%clk 0:02:12.2]} 10... Nxc3+ {[%clk 0:02:36.7]} 11. bxc3
{[%clk 0:02:14.1]} 11... Nc6 {[%clk 0:02:38.3]} 12. f4 {[%clk 0:02:10.8]} 12...
O-O-O {[%clk 0:02:38.8]} 13. Ke1 {[%clk 0:01:55.5]} 13... g5 {[%clk 0:02:37.9]}
14. Nf3 {[%clk 0:01:31]} 14... gxf4 {[%clk 0:02:37.3]} 15. Bxf4 {[%clk
0:01:32.9]} 15... Bg7 {[%clk 0:02:38.3]} 16. Bc4 {[%clk 0:00:58.7]} 16... Nxe5
{[%clk 0:02:23.4]} 17. Bxe5 {[%clk 0:00:45.7]} 17... Bxe5 {[%clk 0:02:25.3]} 18.
Nxe5 {[%clk 0:00:47]} 18... Rhe8 {[%clk 0:02:26.2]} 19. Be2 {[%clk 0:00:03.4]}
19... Rxe5 {[%clk 0:02:26.5]} 20. Kf2 {[%clk 0:00:04.9]} 20... Bc6 {[%clk
0:02:22.2]} 21. Rhe1 {[%clk 0:00:05.6]} 21... Rd2 {[%clk 0:02:19]} 22. Kg1
{[%clk 0:00:02.8]} 22... Rdxe2 {[%clk 0:02:18.9]} 23. Rxe2 {[%clk 0:00:03.4]}
23... Rxe2 {[%clk 0:02:20.8]} 24. Kf1 {[%clk 0:00:05]} 24... Rxg2 {[%clk
0:02:21.6]} 25. Re1 {[%clk 0:00:05.3]} 25... Rxa2 {[%clk 0:02:22.2]} 26. Re7
{[%clk 0:00:06.6]} 26... Rxh2 {[%clk 0:02:22]} 27. Rxf7 {[%clk 0:00:07.9]} 27...
b5 {[%clk 0:02:23.3]} 28. Rf6 {[%clk 0:00:08.9]} 28... Kb7 {[%clk 0:02:24.3]}
29. Ke1 {[%clk 0:00:09.4]} 29... Rb2 {[%clk 0:02:25.8]} 30. Kd1 {[%clk
0:00:10.9]} 30... a5 {[%clk 0:02:27.4]} 31. Kc1 {[%clk 0:00:12.4]} 31... Rg2
{[%clk 0:02:28.8]} 32. Rh6 {[%clk 0:00:12.9]} 32... Be4 {[%clk 0:02:29.2]} 33.
c4 {[%clk 0:00:10.4]} 33... b4 {[%clk 0:02:29.8]} 34. c5 {[%clk 0:00:10.6]}
34... b3 {[%clk 0:02:30.7]} 35. c6+ {[%clk 0:00:12.2]} 35... Kb6 {[%clk
0:02:32.2]} 36. Kd1 {[%clk 0:00:04.6]} 36... b2 {[%clk 0:02:31.3]} 0-1

[Event "*** Titled Tuesday 3|2 Blitz (Late)"]
[Site "Chess.com"]
[Date "2016.12.06"]
[Round "9"]
[White "silverback96"]
[Black "Alliswell998"]
[Result "1-0"]
[WhiteElo "2021"]
[BlackElo "2131"]
[TimeControl "180+2"]
[EndTime "18:49:32 PST"]
[Termination "silverback96 won by checkmate"]

1. d4 {[%clk 0:03:02]} 1... Nf6 {[%clk 0:02:57.9]} 2. c4 {[%clk 0:03:03.9]} 2...
c5 {[%clk 0:02:58.4]} 3. d5 {[%clk 0:03:04.9]} 3... b5 {[%clk 0:02:59.8]} 4.
cxb5 {[%clk 0:03:06.8]} 4... a6 {[%clk 0:03:01.3]} 5. bxa6 {[%clk 0:03:08.7]}
5... g6 {[%clk 0:03:02.7]} 6. Nc3 {[%clk 0:03:10.6]} 6... Bg7 {[%clk 0:03:04.3]}
7. e4 {[%clk 0:03:11.8]} 7... O-O {[%clk 0:03:05.5]} 8. Nf3 {[%clk 0:03:10.7]}
8... Qa5 {[%clk 0:03:06.7]} 9. Bd2 {[%clk 0:03:06.7]} 9... Bxa6 {[%clk
0:03:05.3]} 10. Be2 {[%clk 0:03:08.3]} 10... Bxe2 {[%clk 0:03:03.2]} 11. Qxe2
{[%clk 0:03:08.8]} 11... Qa6 {[%clk 0:03:03.9]} 12. e5 {[%clk 0:03:07.2]} 12...
Qxe2+ {[%clk 0:03:02.1]} 13. Kxe2 {[%clk 0:03:09.1]} 13... Ng4 {[%clk
0:02:57.7]} 14. Bf4 {[%clk 0:03:09.2]} 14... Na6 {[%clk 0:02:41.3]} 15. a4
{[%clk 0:03:02]} 15... Rfb8 {[%clk 0:02:38.7]} 16. Nb5 {[%clk 0:03:02.8]} 16...
Nb4 {[%clk 0:02:35.2]} 17. Rhc1 {[%clk 0:02:59.6]} 17... Nxd5 {[%clk 0:02:34.2]}
18. Bg3 {[%clk 0:02:58.2]} 18... Rc8 {[%clk 0:02:23.4]} 19. a5 {[%clk
0:02:48.3]} 19... d6 {[%clk 0:02:18.7]} 20. h3 {[%clk 0:02:45.2]} 20... Nxe5
{[%clk 0:02:17.7]} 21. Nxe5 {[%clk 0:02:46.5]} 21... dxe5 {[%clk 0:02:17.8]} 22.
a6 {[%clk 0:02:47.1]} 22... f5 {[%clk 0:02:14.8]} 23. a7 {[%clk 0:02:46.7]}
23... f4 {[%clk 0:02:14.5]} 24. Bh4 {[%clk 0:02:47.3]} 24... h6 {[%clk
0:02:12.1]} 25. f3 {[%clk 0:02:47.5]} 25... Bf6 {[%clk 0:02:03.4]} 26. Bf2
{[%clk 0:02:47.8]} 26... c4 {[%clk 0:01:56.7]} 27. Ra4 {[%clk 0:02:43]} 27... c3
{[%clk 0:01:23.6]} 28. Nxc3 {[%clk 0:02:35]} 28... Nxc3+ {[%clk 0:01:20.3]} 29.
Rxc3 {[%clk 0:02:35.7]} 29... Rxc3 {[%clk 0:01:18.9]} 30. bxc3 {[%clk
0:02:37.6]} 30... Kf7 {[%clk 0:01:13.7]} 31. Rb4 {[%clk 0:02:35.8]} 31... e4
{[%clk 0:01:08.1]} 32. fxe4 {[%clk 0:02:37.7]} 32... Be5 {[%clk 0:01:08]} 33.
Rb7 {[%clk 0:02:34.2]} 33... Ke6 {[%clk 0:01:04.6]} 34. Bc5 {[%clk 0:02:35.2]}
34... Bd6 {[%clk 0:01:04.5]} 35. Bb6 {[%clk 0:02:30.4]} 35... g5 {[%clk
0:00:57.1]} 36. c4 {[%clk 0:02:31.4]} 36... h5 {[%clk 0:00:53.9]} 37. c5 {[%clk
0:02:32.8]} 37... Be5 {[%clk 0:00:55]} 38. c6 {[%clk 0:02:30.2]} 38... g4 {[%clk
0:00:35.8]} 39. c7 {[%clk 0:02:29.8]} 39... Kd7 {[%clk 0:00:18.9]} 40. Rb8
{[%clk 0:02:27.7]} 40... Bxc7 {[%clk 0:00:20.2]} 41. Rxa8 {[%clk 0:02:25]} 41...
Bxb6 {[%clk 0:00:21.6]} 42. Rd8+ {[%clk 0:02:25.2]} 42... Kxd8 {[%clk 0:00:23]}
43. a8=Q+ {[%clk 0:02:26.3]} 43... Kd7 {[%clk 0:00:24.6]} 44. Qd5+ {[%clk
0:02:27.2]} 44... Kc8 {[%clk 0:00:24.7]} 45. Qxh5 {[%clk 0:02:28.7]} 45... f3+
{[%clk 0:00:24.6]} 46. gxf3 {[%clk 0:02:29.7]} 46... gxf3+ {[%clk 0:00:26.5]}
47. Kxf3 {[%clk 0:02:30.3]} 47... Bc7 {[%clk 0:00:28.4]} 48. Qf5+ {[%clk
0:02:31.7]} 48... Kd8 {[%clk 0:00:28.9]} 49. Qe6 {[%clk 0:02:32]} 49... Bd6
{[%clk 0:00:30.1]} 50. h4 {[%clk 0:02:33.3]} 50... Ke8 {[%clk 0:00:30.9]} 51. h5
{[%clk 0:02:34.8]} 51... Kf8 {[%clk 0:00:32.6]} 52. h6 {[%clk 0:02:36.4]} 52...
Bc5 {[%clk 0:00:32.4]} 53. h7 {[%clk 0:02:37.7]} 53... Kg7 {[%clk 0:00:33.8]}
54. Qg8+ {[%clk 0:02:38.8]} 54... Kf6 {[%clk 0:00:33.9]} 55. h8=Q# {[%clk
0:02:40.7]} 1-0

[Event "*** Titled Tuesday 3|2 Blitz (Late)"]
[Site "Chess.com"]
[Date "2016.12.06"]
[Round "9"]
[White "1e41-0"]
[Black "Divertissement"]
[Result "0-1"]
[WhiteElo "2199"]
[BlackElo "2428"]
[TimeControl "180+2"]
[EndTime "18:50:25 PST"]
[Termination "Divertissement won by checkmate"]

1. e4 {[%clk 0:03:02]} 1... e5 {[%clk 0:02:56.7]} 2. Nf3 {[%clk 0:03:02.9]} 2...
Nc6 {[%clk 0:02:58.1]} 3. g3 {[%clk 0:03:04.2]} 3... Nf6 {[%clk 0:02:58.9]} 4.
d3 {[%clk 0:03:05.4]} 4... Bc5 {[%clk 0:02:58.4]} 5. Bg2 {[%clk 0:03:06.2]} 5...
d6 {[%clk 0:02:58.7]} 6. O-O {[%clk 0:03:07.7]} 6... Bg4 {[%clk 0:02:58.1]} 7.
c3 {[%clk 0:03:08.6]} 7... a6 {[%clk 0:02:58.5]} 8. Nbd2 {[%clk 0:03:08.3]} 8...
Ba7 {[%clk 0:02:59.5]} 9. Nc4 {[%clk 0:03:01.9]} 9... Qd7 {[%clk 0:02:59.7]} 10.
Be3 {[%clk 0:02:59.4]} 10... Bh3 {[%clk 0:02:58.3]} 11. Bxa7 {[%clk 0:02:59]}
11... Bxg2 {[%clk 0:02:58.6]} 12. Kxg2 {[%clk 0:02:59.4]} 12... Rxa7 {[%clk
0:03:00.1]} 13. Ne3 {[%clk 0:03:00.9]} 13... Ne7 {[%clk 0:02:59.1]} 14. Re1
{[%clk 0:02:59.4]} 14... Ng6 {[%clk 0:02:59.5]} 15. d4 {[%clk 0:02:58]} 15...
O-O {[%clk 0:02:57.9]} 16. Qd3 {[%clk 0:02:56]} 16... exd4 {[%clk 0:02:55.9]}
17. cxd4 {[%clk 0:02:55.3]} 17... Raa8 {[%clk 0:02:55.9]} 18. Rad1 {[%clk
0:02:52.8]} 18... Rfe8 {[%clk 0:02:55]} 19. Nf5 {[%clk 0:02:50.5]} 19... Rad8
{[%clk 0:02:50.8]} 20. h4 {[%clk 0:02:48.1]} 20... Nh5 {[%clk 0:02:50.2]} 21.
Qd2 {[%clk 0:02:40.2]} 21... d5 {[%clk 0:02:46.3]} 22. Qg5 {[%clk 0:02:36.1]}
22... dxe4 {[%clk 0:02:40.2]} 23. Qxh5 {[%clk 0:02:34]} 23... exf3+ {[%clk
0:02:39.9]} 24. Qxf3 {[%clk 0:02:35.9]} 24... c6 {[%clk 0:02:32.6]} 25. h5
{[%clk 0:02:35.2]} 25... Ne7 {[%clk 0:02:32.5]} 26. Nxg7 {[%clk 0:01:41.3]}
26... Kxg7 {[%clk 0:02:27.4]} 27. h6+ {[%clk 0:01:41.9]} 27... Kf8 {[%clk
0:02:06.2]} 28. Qf6 {[%clk 0:01:33.5]} 28... Qg4 {[%clk 0:02:06]} 29. Re5 {[%clk
0:00:56.9]} 29... Qg6 {[%clk 0:01:56.4]} 30. Qf4 {[%clk 0:00:57.4]} 30... Nd5
{[%clk 0:01:51.9]} 31. Qh4 {[%clk 0:00:56.6]} 31... Rxe5 {[%clk 0:01:50.8]} 32.
dxe5 {[%clk 0:00:58.5]} 32... Ne3+ {[%clk 0:01:42.5]} 33. fxe3 {[%clk
0:00:56.6]} 33... Rxd1 {[%clk 0:01:41.8]} 34. Qb4+ {[%clk 0:00:58.2]} 34... Ke8
{[%clk 0:01:41.5]} 35. Qc4 {[%clk 0:00:19.1]} 35... Rd2+ {[%clk 0:01:40.1]} 36.
Kf3 {[%clk 0:00:19.8]} 36... Qf5+ {[%clk 0:01:37.3]} 37. Qf4 {[%clk 0:00:19.8]}
37... Qxf4+ {[%clk 0:01:36.5]} 38. exf4 {[%clk 0:00:20.8]} 38... Rxb2 {[%clk
0:01:37.6]} 39. f5 {[%clk 0:00:22.7]} 39... Rxa2 {[%clk 0:01:38.5]} 40. g4
{[%clk 0:00:24.4]} 40... Ra4 {[%clk 0:01:38.2]} 41. g5 {[%clk 0:00:25]} 41...
Kf8 {[%clk 0:01:39.2]} 42. e6 {[%clk 0:00:13.1]} 42... Rh4 {[%clk 0:01:32.7]}
43. g6 {[%clk 0:00:10.6]} 43... hxg6 {[%clk 0:01:31.3]} 44. Kg3 {[%clk 0:00:10]}
44... Rxh6 {[%clk 0:01:31.9]} 45. exf7 {[%clk 0:00:10.6]} 45... Kxf7 {[%clk
0:01:33]} 46. fxg6+ {[%clk 0:00:12.5]} 46... Rxg6+ {[%clk 0:01:33.8]} 47. Kf3
{[%clk 0:00:14.4]} 47... Re6 {[%clk 0:01:35]} 48. Kf4 {[%clk 0:00:16.3]} 48...
a5 {[%clk 0:01:36.3]} 49. Kf3 {[%clk 0:00:17.3]} 49... a4 {[%clk 0:01:38.2]} 50.
Kf2 {[%clk 0:00:19.2]} 50... a3 {[%clk 0:01:40.1]} 51. Kf3 {[%clk 0:00:21.1]}
51... a2 {[%clk 0:01:42]} 52. Kf4 {[%clk 0:00:23]} 52... a1=Q {[%clk 0:01:43.9]}
53. Kg5 {[%clk 0:00:24.9]} 53... Qf6+ {[%clk 0:01:45]} 54. Kg4 {[%clk
0:00:26.4]} 54... Re5 {[%clk 0:01:45.8]} 55. Kg3 {[%clk 0:00:28]} 55... Rg5+
{[%clk 0:01:47]} 56. Kh4 {[%clk 0:00:29]} 56... Qh6# {[%clk 0:01:48.9]} 0-1

[Event "*** Titled Tuesday 3|2 Blitz (Late)"]
[Site "Chess.com"]
[Date "2016.12.06"]
[Round "9"]
[White "Sethu0025"]
[Black "jcibarra"]
[Result "1-0"]
[WhiteElo "2615"]
[BlackElo "2609"]
[TimeControl "180+2"]
[EndTime "18:50:30 PST"]
[Termination "Sethu0025 won by resignation"]

1. e4 {[%clk 0:03:02]} 1... e5 {[%clk 0:02:59.8]} 2. Nf3 {[%clk 0:03:02.8]} 2...
Nc6 {[%clk 0:03:00.8]} 3. Bb5 {[%clk 0:03:03.4]} 3... Nf6 {[%clk 0:03:01.8]} 4.
d3 {[%clk 0:03:04.4]} 4... Bc5 {[%clk 0:03:01.9]} 5. Bxc6 {[%clk 0:03:05.9]}
5... dxc6 {[%clk 0:02:56.2]} 6. Qe2 {[%clk 0:03:07.8]} 6... Bd6 {[%clk
0:02:43.9]} 7. Nbd2 {[%clk 0:03:08.5]} 7... Nd7 {[%clk 0:02:39.8]} 8. Nc4 {[%clk
0:03:06.7]} 8... Qe7 {[%clk 0:02:39.8]} 9. Bd2 {[%clk 0:03:04.7]} 9... Nb6
{[%clk 0:02:33.7]} 10. Ne3 {[%clk 0:03:03.1]} 10... g6 {[%clk 0:02:17.7]} 11. a4
{[%clk 0:02:57.7]} 11... a5 {[%clk 0:02:17.8]} 12. Bc3 {[%clk 0:02:52.1]} 12...
Bb4 {[%clk 0:02:17.1]} 13. Qd2 {[%clk 0:02:48.9]} 13... f6 {[%clk 0:02:14.6]}
14. h4 {[%clk 0:02:43.9]} 14... h5 {[%clk 0:02:13.8]} 15. Bxb4 {[%clk
0:02:39.1]} 15... axb4 {[%clk 0:02:11.2]} 16. a5 {[%clk 0:02:39.6]} 16... Be6
{[%clk 0:02:07.1]} 17. O-O {[%clk 0:02:39.7]} 17... Nd7 {[%clk 0:02:06.2]} 18.
d4 {[%clk 0:02:40.5]} 18... c5 {[%clk 0:01:59.9]} 19. dxe5 {[%clk 0:02:30.6]}
19... Nxe5 {[%clk 0:02:00]} 20. Nxe5 {[%clk 0:02:26.9]} 20... fxe5 {[%clk
0:02:00.9]} 21. f4 {[%clk 0:02:24.8]} 21... Qxh4 {[%clk 0:01:44]} 22. f5 {[%clk
0:02:15.2]} 22... gxf5 {[%clk 0:01:38.5]} 23. Nxf5 {[%clk 0:02:04.3]} 23... Bxf5
{[%clk 0:01:39.5]} 24. Rxf5 {[%clk 0:02:05]} 24... Qxe4 {[%clk 0:01:40.5]} 25.
Qg5 {[%clk 0:02:04.4]} 25... Kd7 {[%clk 0:01:26.1]} 26. Rd1+ {[%clk 0:01:54.7]}
26... Kc6 {[%clk 0:01:26]} 27. Rxe5 {[%clk 0:01:55.4]} 27... Qc4 {[%clk
0:01:01.8]} 28. Qf6+ {[%clk 0:01:29.5]} 28... Kb5 {[%clk 0:00:59.7]} 29. b3
{[%clk 0:01:19.7]} 29... Qxc2 {[%clk 0:00:52.4]} 30. Qf1+ {[%clk 0:01:19.9]}
30... Kxa5 {[%clk 0:00:36.3]} 31. Rc1 {[%clk 0:01:19.4]} 31... Qxc1 {[%clk
0:00:17.5]} 32. Qxc1 {[%clk 0:01:19]} 32... b6 {[%clk 0:00:19.4]} 33. Re7 {[%clk
0:01:13.8]} 33... Rhc8 {[%clk 0:00:16.9]} 34. Qc4 {[%clk 0:01:05.2]} 34... Rg8
{[%clk 0:00:06.1]} 35. Re1 {[%clk 0:01:03.6]} 1-0

[Event "*** Titled Tuesday 3|2 Blitz (Late)"]
[Site "Chess.com"]
[Date "2016.12.06"]
[Round "9"]
[White "Kawhi_Leonard2"]
[Black "oskariot"]
[Result "0-1"]
[WhiteElo "2232"]
[BlackElo "2404"]
[TimeControl "180+2"]
[EndTime "18:51:10 PST"]
[Termination "oskariot won by resignation"]

1. e4 {[%clk 0:03:02]} 1... c5 {[%clk 0:03:00.7]} 2. Nf3 {[%clk 0:03:02.9]} 2...
d6 {[%clk 0:03:01.9]} 3. d4 {[%clk 0:03:04.5]} 3... cxd4 {[%clk 0:03:03.8]} 4.
Nxd4 {[%clk 0:03:05.8]} 4... Nf6 {[%clk 0:03:05.3]} 5. Nc3 {[%clk 0:03:07.2]}
5... Nc6 {[%clk 0:03:07.2]} 6. Bg5 {[%clk 0:03:07.3]} 6... Qb6 {[%clk 0:03:08]}
7. Nb3 {[%clk 0:03:06.9]} 7... e6 {[%clk 0:03:08.9]} 8. Qd2 {[%clk 0:03:06.8]}
8... a6 {[%clk 0:03:09.5]} 9. O-O-O {[%clk 0:03:06.8]} 9... Be7 {[%clk 0:03:08]}
10. f3 {[%clk 0:03:06.2]} 10... O-O {[%clk 0:03:07.1]} 11. Be3 {[%clk 0:03:07]}
11... Qc7 {[%clk 0:03:07.7]} 12. g4 {[%clk 0:03:08.2]} 12... Nd7 {[%clk
0:03:06.7]} 13. g5 {[%clk 0:03:08.4]} 13... b5 {[%clk 0:03:07.8]} 14. h4 {[%clk
0:03:00.5]} 14... b4 {[%clk 0:03:05.1]} 15. Ne2 {[%clk 0:02:57.9]} 15... a5
{[%clk 0:03:03.6]} 16. Kb1 {[%clk 0:02:56.5]} 16... a4 {[%clk 0:03:03.3]} 17.
Nbd4 {[%clk 0:02:57.6]} 17... Nce5 {[%clk 0:02:56.1]} 18. Qxb4 {[%clk
0:02:45.6]} 18... Nc4 {[%clk 0:02:20.3]} 19. Bc1 {[%clk 0:02:44.7]} 19... Rb8
{[%clk 0:02:19.7]} 20. Qc3 {[%clk 0:02:45.6]} 20... d5 {[%clk 0:02:18.3]} 21.
Ka1 {[%clk 0:02:34.8]} 21... Bb4 {[%clk 0:02:16]} 22. Qd3 {[%clk 0:02:34.9]}
22... Nc5 {[%clk 0:02:04.2]} 23. Bf4 {[%clk 0:02:13.4]} 23... e5 {[%clk
0:02:02.7]} 24. Nb5 {[%clk 0:02:10.9]} 24... Rxb5 {[%clk 0:01:44]} 25. Qxd5
{[%clk 0:02:11]} 25... Nb3+ {[%clk 0:01:44.4]} 26. cxb3 {[%clk 0:02:09.9]} 26...
Rxd5 {[%clk 0:01:44.6]} 27. exd5 {[%clk 0:02:09.5]} 27... exf4 {[%clk
0:01:44.3]} 28. bxc4 {[%clk 0:02:10.1]} 28... Qxc4 {[%clk 0:01:27.9]} 29. Nc3
{[%clk 0:02:04.6]} 29... Qc5 {[%clk 0:01:17.4]} 30. Ne4 {[%clk 0:02:03]} 30...
Qc2 {[%clk 0:01:16.5]} 31. Bd3 {[%clk 0:02:03.8]} 31... Qg2 {[%clk 0:01:06.8]}
32. a3 {[%clk 0:01:50.2]} 32... Ba5 {[%clk 0:00:54.9]} 33. d6 {[%clk 0:01:33.2]}
33... Bf5 {[%clk 0:00:53.9]} 34. Rhg1 {[%clk 0:01:28.3]} 34... Qxf3 {[%clk
0:00:47.3]} 35. Nf6+ {[%clk 0:01:29.2]} 35... gxf6 {[%clk 0:00:44.8]} 36. Bxf5
{[%clk 0:01:30.1]} 36... fxg5 {[%clk 0:00:32.8]} 37. Rxg5+ {[%clk 0:01:29]}
37... Kh8 {[%clk 0:00:33.9]} 38. Rdg1 {[%clk 0:01:28.6]} 38... Bd8 {[%clk
0:00:30.4]} 39. Rg7 {[%clk 0:01:17.4]} 39... Qh5 {[%clk 0:00:30.8]} 40. Bc2
{[%clk 0:00:42.5]} 40... Bf6 {[%clk 0:00:31.2]} 41. Rxh7+ {[%clk 0:00:33.5]}
41... Qxh7 {[%clk 0:00:31.7]} 42. Bxh7 {[%clk 0:00:34.9]} 42... Kxh7 {[%clk
0:00:33.1]} 43. Rg4 {[%clk 0:00:35.5]} 43... Be5 {[%clk 0:00:30]} 44. d7 {[%clk
0:00:35.8]} 44... Rd8 {[%clk 0:00:30.8]} 45. Rg5 {[%clk 0:00:37.1]} 45... f6
{[%clk 0:00:30.8]} 46. Rxe5 {[%clk 0:00:27.5]} 46... fxe5 {[%clk 0:00:31.4]} 0-1

[Event "*** Titled Tuesday 3|2 Blitz (Late)"]
[Site "Chess.com"]
[Date "2016.12.06"]
[Round "9"]
[White "AllStarShark"]
[Black "visa"]
[Result "1-0"]
[WhiteElo "2312"]
[BlackElo "2135"]
[TimeControl "180+2"]
[EndTime "18:51:24 PST"]
[Termination "AllStarShark won by checkmate"]

1. d4 {[%clk 0:03:02]} 1... d5 {[%clk 0:02:59.2]} 2. c4 {[%clk 0:03:00.7]} 2...
e6 {[%clk 0:03:00.3]} 3. Nc3 {[%clk 0:03:01.1]} 3... c6 {[%clk 0:03:01.6]} 4.
Nf3 {[%clk 0:03:01.5]} 4... Bd6 {[%clk 0:02:54.4]} 5. Bg5 {[%clk 0:02:53.9]}
5... f6 {[%clk 0:02:52.9]} 6. Bh4 {[%clk 0:02:53.9]} 6... dxc4 {[%clk
0:02:54.2]} 7. e4 {[%clk 0:02:53.5]} 7... b5 {[%clk 0:02:53.9]} 8. e5 {[%clk
0:02:54]} 8... Bb4 {[%clk 0:02:52.7]} 9. a4 {[%clk 0:02:49.3]} 9... a6 {[%clk
0:02:44.5]} 10. Be2 {[%clk 0:02:48.3]} 10... Bb7 {[%clk 0:02:40.8]} 11. O-O
{[%clk 0:02:49.1]} 11... Bxc3 {[%clk 0:02:41.8]} 12. bxc3 {[%clk 0:02:49.7]}
12... g5 {[%clk 0:02:34.8]} 13. Bg3 {[%clk 0:02:42.8]} 13... f5 {[%clk
0:02:35.4]} 14. h4 {[%clk 0:02:29.3]} 14... h6 {[%clk 0:02:21.2]} 15. Qd2 {[%clk
0:02:25.6]} 15... g4 {[%clk 0:02:19.8]} 16. Nh2 {[%clk 0:02:22.8]} 16... Ne7
{[%clk 0:02:19.9]} 17. f3 {[%clk 0:02:22.4]} 17... h5 {[%clk 0:02:14.4]} 18. Qg5
{[%clk 0:02:18.1]} 18... Kd7 {[%clk 0:02:13.2]} 19. fxg4 {[%clk 0:02:09.2]}
19... hxg4 {[%clk 0:02:10.8]} 20. Bxg4 {[%clk 0:02:07]} 20... Rg8 {[%clk
0:01:37.2]} 21. Qh6 {[%clk 0:01:57.9]} 21... Rg6 {[%clk 0:01:34.4]} 22. Qh7
{[%clk 0:01:53.5]} 22... Qg8 {[%clk 0:01:16.2]} 23. Qxg8 {[%clk 0:01:41.7]}
23... Rxg8 {[%clk 0:01:04.9]} 24. d5 {[%clk 0:00:32.5]} 24... Nxd5 {[%clk
0:00:51.9]} 25. Bxf5 {[%clk 0:00:30.1]} 25... Rxg3 {[%clk 0:00:39.9]} 26. Bg4
{[%clk 0:00:21.6]} 26... Rxc3 {[%clk 0:00:27.4]} 27. Rf7+ {[%clk 0:00:21.6]}
27... Ne7 {[%clk 0:00:27.8]} 28. Rd1+ {[%clk 0:00:20.6]} 28... Ke8 {[%clk
0:00:14.5]} 29. Bh5 {[%clk 0:00:20.9]} 29... Rd3 {[%clk 0:00:13.5]} 30. Rdf1
{[%clk 0:00:14.7]} 30... Kd7 {[%clk 0:00:13.2]} 31. Rh7 {[%clk 0:00:10.4]} 31...
c5 {[%clk 0:00:14.3]} 32. Rff7 {[%clk 0:00:11]} 32... Nc6 {[%clk 0:00:15.6]} 33.
Bf3 {[%clk 0:00:11.2]} 33... Re8 {[%clk 0:00:14.7]} 34. Ng4 {[%clk 0:00:11.7]}
34... c3 {[%clk 0:00:12.6]} 35. Nf6+ {[%clk 0:00:12.8]} 35... Kd8 {[%clk
0:00:14]} 36. Nxe8 {[%clk 0:00:13.9]} 36... c2 {[%clk 0:00:15.4]} 37. Nd6 {[%clk
0:00:07.4]} 37... c1=Q+ {[%clk 0:00:15.4]} 38. Kh2 {[%clk 0:00:08.4]} 38... Nxe5
{[%clk 0:00:12.9]} 39. Nxb7+ {[%clk 0:00:08]} 39... Kc7 {[%clk 0:00:13.2]} 40.
Rxe7+ {[%clk 0:00:09.4]} 40... Kb6 {[%clk 0:00:13.6]} 41. a5+ {[%clk 0:00:10.9]}
41... Ka7 {[%clk 0:00:12.3]} 42. Nxc5+ {[%clk 0:00:11.8]} 42... Nd7 {[%clk
0:00:11.7]} 43. Rxd7+ {[%clk 0:00:12.4]} 43... Rxd7 {[%clk 0:00:11.3]} 44. Rxd7+
{[%clk 0:00:14.3]} 44... Kb8 {[%clk 0:00:12.3]} 45. Rd8+ {[%clk 0:00:10.9]}
45... Kc7 {[%clk 0:00:13]} 46. Nxe6# {[%clk 0:00:11.1]} 1-0

[Event "*** Titled Tuesday 3|2 Blitz (Late)"]
[Site "Chess.com"]
[Date "2016.12.06"]
[Round "9"]
[White "HarutyunianTigranK"]
[Black "MaestroASK"]
[Result "1-0"]
[WhiteElo "2630"]
[BlackElo "2475"]
[TimeControl "180+2"]
[EndTime "18:51:27 PST"]
[Termination "HarutyunianTigranK won by checkmate"]

1. c4 {[%clk 0:03:02]} 1... d6 {[%clk 0:03:01.4]} 2. d4 {[%clk 0:03:01]} 2... g6
{[%clk 0:03:02.6]} 3. Nc3 {[%clk 0:03:01.4]} 3... c6 {[%clk 0:03:03.4]} 4. Nf3
{[%clk 0:03:00.3]} 4... Bg7 {[%clk 0:03:03.5]} 5. g3 {[%clk 0:02:59.8]} 5... e5
{[%clk 0:03:03.8]} 6. Bg2 {[%clk 0:03:00.8]} 6... f6 {[%clk 0:03:03.9]} 7. O-O
{[%clk 0:03:00.9]} 7... Nh6 {[%clk 0:03:03.4]} 8. Ne4 {[%clk 0:02:51.4]} 8...
Nf7 {[%clk 0:03:02.1]} 9. dxe5 {[%clk 0:02:38.9]} 9... dxe5 {[%clk 0:02:59.1]}
10. b3 {[%clk 0:02:38.5]} 10... Qxd1 {[%clk 0:02:57.6]} 11. Rxd1 {[%clk
0:02:38.7]} 11... f5 {[%clk 0:02:57.3]} 12. Nc3 {[%clk 0:02:12.6]} 12... e4
{[%clk 0:02:56.7]} 13. Nd4 {[%clk 0:02:13.6]} 13... O-O {[%clk 0:02:33.3]} 14.
Ba3 {[%clk 0:02:13.6]} 14... Re8 {[%clk 0:02:33.2]} 15. Rac1 {[%clk 0:02:09.4]}
15... Na6 {[%clk 0:02:32.6]} 16. f3 {[%clk 0:01:51.8]} 16... exf3 {[%clk
0:02:30.4]} 17. exf3 {[%clk 0:01:52.7]} 17... Nc7 {[%clk 0:02:21.7]} 18. f4
{[%clk 0:01:51.8]} 18... Rd8 {[%clk 0:01:55.3]} 19. Nce2 {[%clk 0:01:34.9]}
19... Ne6 {[%clk 0:01:51.2]} 20. Nf3 {[%clk 0:01:30.3]} 20... Bf6 {[%clk
0:01:45.8]} 21. Rxd8+ {[%clk 0:01:27.2]} 21... Nexd8 {[%clk 0:01:44.7]} 22. Rd1
{[%clk 0:01:29.1]} 22... Ne6 {[%clk 0:01:43.2]} 23. Ned4 {[%clk 0:01:25.8]}
23... Nxd4 {[%clk 0:01:42.3]} 24. Nxd4 {[%clk 0:01:26.3]} 24... a5 {[%clk
0:01:41.9]} 25. Bc5 {[%clk 0:01:19.9]} 25... a4 {[%clk 0:01:34.5]} 26. b4 {[%clk
0:01:20.2]} 26... a3 {[%clk 0:01:35.3]} 27. b5 {[%clk 0:01:21.4]} 27... Ra4
{[%clk 0:01:29.8]} 28. bxc6 {[%clk 0:01:14.8]} 28... bxc6 {[%clk 0:01:09.3]} 29.
Nxc6 {[%clk 0:01:12.6]} 29... Rxc4 {[%clk 0:01:01.4]} 30. Bxa3 {[%clk
0:00:56.4]} 30... Ra4 {[%clk 0:00:51.4]} 31. Be7 {[%clk 0:00:52.8]} 31... Kg7
{[%clk 0:00:45.4]} 32. Bd5 {[%clk 0:00:44]} 32... Bb7 {[%clk 0:00:34.6]} 33.
Bxf6+ {[%clk 0:00:40.8]} 33... Kxf6 {[%clk 0:00:34.3]} 34. Bxf7 {[%clk
0:00:41.4]} 34... Bxc6 {[%clk 0:00:33.3]} 35. Bb3 {[%clk 0:00:42.9]} 35... Ra6
{[%clk 0:00:25.5]} 36. Rd6+ {[%clk 0:00:37]} 36... Ke7 {[%clk 0:00:26]} 37. Re6+
{[%clk 0:00:37.4]} 37... Kd7 {[%clk 0:00:26.5]} 38. Kf2 {[%clk 0:00:34.3]} 38...
Ra8 {[%clk 0:00:15.5]} 39. Ke3 {[%clk 0:00:31.6]} 39... Rb8 {[%clk 0:00:15.8]}
40. Rf6 {[%clk 0:00:28.2]} 40... Re8+ {[%clk 0:00:15]} 41. Kd4 {[%clk
0:00:27.8]} 41... Re2 {[%clk 0:00:14.3]} 42. Kc5 {[%clk 0:00:28.8]} 42... Be4
{[%clk 0:00:13.8]} 43. Rf7+ {[%clk 0:00:29.8]} 43... Ke8 {[%clk 0:00:14.9]} 44.
Rxh7 {[%clk 0:00:30.8]} 44... Re1 {[%clk 0:00:14.6]} 45. Kd6 {[%clk 0:00:31.8]}
45... Bb1 {[%clk 0:00:14.3]} 46. Rh8# {[%clk 0:00:32]} 1-0